bitfinex/quotes_BTCUSD_20250314
["timestamp","ask_amount","ask_price","bid_price","bid_amount"]
[1741961338294,0.012006,83291.0,83284.0,0.012007]
[1741961338532,0.240125,83290.0,83285.0,0.012006]
[1741961338795,0.240129,83289.0,83285.0,0.240137]
[1741961338989,0.012005,83292.0,83286.0,0.240135]
[1741961339205,0.3381855,83320.0,83294.0,0.012005]
[1741961339206,0.240062,83312.0,83294.0,0.012005]
[1741961339445,0.240104,83297.0,83292.0,0.012005]
[1741961339709,0.240105,83297.0,83294.0,0.240113]
[1741961339933,0.240105,83297.0,83293.0,0.240115]
[1741961340168,0.01883113,83296.0,83295.0,0.012005]
[1741961340466,0.01883113,83296.0,83295.0,0.252115]
[1741961341052,0.01883113,83296.0,83295.0,0.17524]
[1741961341274,0.04115239,83296.0,83295.0,0.187245]
[1741961341479,0.04115239,83296.0,83286.0,0.012006]
[1741961341480,0.24011,83295.0,83286.0,0.012006]
[1741961341636,0.04115239,83296.0,83295.0,0.012005]
[1741961342341,0.02232126,83296.0,83295.0,0.25331548]
[1741961342535,0.02232126,83296.0,83295.0,0.252115]
[1741961342778,9.1e-07,83306.0,83305.0,0.252085]
[1741961342981,0.252013,83329.0,83317.0,0.252049]
[1741961343155,0.01882629,83325.0,83317.0,0.252049]
[1741961343579,0.012002,83315.0,83309.0,0.240068]
[1741961343803,0.252085,83305.0,83304.0,0.17524]
[1741961344002,0.012005,83298.0,83297.0,0.17524]
[1741961344165,0.25211,83298.0,83297.0,0.192764]
[1741961344369,0.240082,83305.0,83301.0,0.24009]
[1741961344612,0.012004,83299.0,83297.0,0.192764]
[1741961344811,0.01883073,83298.0,83297.0,0.17524]
[1741961345033,0.01883073,83298.0,83297.0,0.187245]
[1741961345420,0.01883073,83298.0,83297.0,0.17524]
[1741961345620,0.01883073,83298.0,83297.0,0.187245]
[1741961345826,0.01883073,83298.0,83297.0,0.17524]
[1741961346198,0.01883073,83298.0,83297.0,0.187245]
[1741961346607,0.01883073,83298.0,83297.0,0.427349]
[1741961347146,0.01883073,83298.0,83272.0,0.005]
[1741961347147,0.240113,83294.0,83271.0,0.00097]
[1741961347344,0.012006,83289.0,83287.0,0.1752]
[1741961347570,0.240126,83290.0,83287.0,0.1752]
[1741961347772,0.012008,83277.0,83270.0,0.061409]
[1741961349190,0.012013,83237.0,83231.0,0.10570626]
[1741961349401,0.240232,83253.0,83245.0,0.240254]
[1741961349603,0.012011,83252.0,83241.0,0.012013]
[1741961349804,0.240258,83244.0,83237.0,0.012013]
[1741961350022,0.25226,83248.0,83242.0,0.240261]
[1741961350226,0.240267,83241.0,83238.0,0.17524]
[1741961350430,0.012011,83251.0,83245.0,0.012012]
[1741961350673,0.012012,83250.0,83238.0,0.012013]
[1741961350847,0.012014,83232.0,83231.0,0.10570626]
[1741961351277,0.16264123,83233.0,83231.0,0.10570626]
[1741961351470,0.360385,83245.0,83231.0,0.10570626]
[1741961351471,0.012013,83243.0,83231.0,0.10570626]
[1741961351702,0.012014,83236.0,83231.0,0.10570626]
[1741961351873,0.012014,83233.0,83231.0,0.10570626]
[1741961352218,0.4124,83247.0,83232.0,0.012014]
[1741961352387,0.012012,83246.0,83241.0,0.240265]
[1741961352590,0.55775824,83247.0,83242.0,0.240262]
[1741961352790,0.55775824,83247.0,83241.0,0.240265]
[1741961352791,0.31750824,83247.0,83245.0,0.240254]
[1741961353046,0.31750824,83247.0,83243.0,0.240259]
[1741961353198,0.012013,83242.0,83232.0,0.240292]
[1741961353378,0.012013,83242.0,83230.0,0.240296]
[1741961353379,0.012013,83237.0,83230.0,0.240296]
[1741961353584,0.012014,83235.0,83229.0,0.17528]
[1741961353783,0.240292,83232.0,83226.0,0.2404788]
[1741961353985,0.240296,83231.0,83226.0,0.0001698]
[1741961354280,0.240292,83232.0,83226.0,0.0001698]
[1741961354281,0.240304,83228.0,83226.0,0.0001698]
[1741961354744,0.012013,83237.0,83226.0,0.0001698]
[1741961354896,0.012013,83242.0,83232.0,0.012014]
[1741961355100,0.012013,83240.0,83230.0,0.012014]
[1741961355288,0.001,83233.0,83232.0,0.240291]
[1741961355484,0.001,83233.0,83227.0,0.01454085]
[1741961355485,0.012014,83232.0,83227.0,0.01454085]
[1741961355730,0.2523,83234.0,83228.0,0.240301]
[1741961356039,0.252304,83233.0,83227.0,0.240303]
[1741961356245,0.240305,83228.0,83226.0,0.0001698]
[1741961356500,0.012014,83232.0,83230.0,0.004]
[1741961356501,0.25231,83231.0,83230.0,0.004]
[1741961356891,0.252308,83232.0,83230.0,0.004]
[1741961357093,0.240278,83237.0,83231.0,0.012014]
[1741961357319,0.01884617,83231.0,83230.0,0.004]
[1741961357499,0.01884617,83231.0,83228.0,0.252317]
[1741961357697,0.01884617,83231.0,83227.0,0.012015]
[1741961357898,0.01884617,83231.0,83228.0,0.240302]
[1741961358103,0.01884617,83231.0,83230.0,0.012014]
[1741961358313,0.01884617,83231.0,83228.0,0.252315]
[1741961358514,0.012014,83235.0,83228.0,0.012015]
[1741961358715,0.240292,83232.0,83226.0,0.0001698]
[1741961359141,0.240292,83232.0,83228.0,0.004]
[1741961359344,0.012012,83244.0,83232.0,0.012014]
[1741961359505,0.012012,83244.0,83235.0,0.012014]
[1741961359707,0.012011,83254.0,83246.0,0.012012]
[1741961359887,0.012011,83251.0,83243.0,0.012013]
[1741961360088,0.01201,83262.0,83245.0,0.012012]
[1741961360293,0.012011,83254.0,83246.0,0.240251]
[1741961362379,0.01884197,83251.0,83249.0,0.252254]
[1741961362664,0.01884197,83251.0,83250.0,0.012012]
[1741961363505,0.012008,83274.0,83260.0,0.01201]
[1741961363714,0.240182,83270.0,83266.0,0.240193]
[1741961363925,0.24018,83271.0,83266.0,0.240193]
[1741961364096,0.012008,83273.0,83266.0,0.252202]
[1741961364345,0.012007,83278.0,83270.0,0.012009]
[1741961364518,0.012007,83282.0,83274.0,0.012008]
[1741961364752,0.012006,83286.0,83277.0,0.24016]
[1741961364959,0.012006,83286.0,83267.0,0.17528]
[1741961364960,0.3,83292.0,83288.0,0.240128]
[1741961365128,0.012005,83297.0,83290.0,0.012006]
[1741961365129,0.012005,83295.0,83290.0,0.012006]
[1741961365302,0.012005,83293.0,83286.0,0.012006]
[1741961365508,0.11814665,83303.0,83267.0,0.22328]
[1741961365509,0.3,83302.0,83267.0,0.22328]
[1741961365716,0.012007,83283.0,83277.0,0.012008]
[1741961365880,0.240131,83288.0,83283.0,0.240142]
[1741961366076,0.240131,83288.0,83282.0,0.012007]
[1741961366288,0.012005,83295.0,83287.0,0.012006]
[1741961366506,0.240142,83284.0,83279.0,0.252163]
[1741961366708,0.240142,83284.0,83280.0,0.240153]
[1741961366910,0.012006,83286.0,83282.0,0.240147]
[1741961366911,0.240137,83286.0,83282.0,0.240147]
[1741961367108,0.012007,83284.0,83279.0,0.012007]
[1741961367370,0.012007,83283.0,83277.0,0.012008]
[1741961367580,0.012007,83283.0,83276.0,0.012008]
[1741961367581,0.012007,83279.0,83270.0,0.012009]
[1741961367788,0.0188347,83287.0,83285.0,0.252145]
[1741961367991,0.240131,83288.0,83284.0,0.240141]
[1741961368203,0.240131,83288.0,83282.0,0.012007]
[1741961368204,0.012006,83287.0,83282.0,0.012007]
[1741961368378,0.240148,83282.0,83278.0,0.240158]
[1741961368578,0.012007,83283.0,83282.0,0.001]
[1741961368782,0.240144,83284.0,83282.0,0.001]
[1741961369004,0.240142,83284.0,83282.0,0.001]
[1741961369182,0.012007,83283.0,83273.0,0.012008]
[1741961369413,0.240144,83284.0,83279.0,0.240156]
[1741961369650,0.240145,83283.0,83280.0,0.240153]
[1741961370066,0.24015,83282.0,83278.0,0.012007]
[1741961370326,0.24015,83282.0,83194.0,0.06081417]
[1741961370327,0.012005,83296.0,83283.0,0.252149]
[1741961370521,0.012005,83296.0,83283.0,0.252151]
[1741961370522,0.012006,83289.0,83283.0,0.252151]
[1741961370670,0.24013,83288.0,83283.0,0.012007]
[1741961370897,0.012006,83289.0,83282.0,0.012007]
[1741961370898,0.012006,83286.0,83282.0,0.240146]
[1741961371116,0.240137,83286.0,83282.0,0.012007]
[1741961371321,0.252142,83286.0,83281.0,0.252155]
[1741961371647,0.012006,83285.0,83278.0,0.240157]
[1741961371847,0.240144,83284.0,83279.0,0.012007]
[1741961372018,0.2709793,83286.0,83280.0,0.012007]
[1741961372284,0.0188353,83286.0,83285.0,0.240139]
[1741961372505,0.0188353,83286.0,83285.0,0.427385]
[1741961372718,0.0188353,83286.0,83285.0,0.51852585]
[1741961372916,0.240065,83311.0,83305.0,0.240081]
[1741961373250,0.012005,83298.0,83286.0,0.240136]
[1741961373432,0.240113,83294.0,83292.0,0.04215225]
[1741961373636,0.012007,83281.0,83280.0,0.002]
[1741961374977,0.240148,83282.0,83278.0,0.240159]
[1741961375185,0.252155,83282.0,83274.0,0.012008]
[1741961375381,0.240159,83278.0,83274.0,0.24017]
[1741961375580,0.240165,83276.0,83272.0,0.240176]
[1741961375764,0.012009,83264.0,83253.0,0.0477]
[1741961375970,0.3,83269.0,83250.0,0.012012]
[1741961376174,0.012009,83264.0,83254.0,0.012011]
[1741961376384,0.012008,83275.0,83266.0,0.012009]
[1741961376608,0.24018,83271.0,83266.0,0.012009]
[1741961376814,0.24018,83271.0,83257.0,0.240218]
[1741961376815,0.240161,83278.0,83272.0,0.240176]
[1741961377042,0.012007,83278.0,83270.0,0.012009]
[1741961377238,0.012007,83284.0,83275.0,0.012008]
[1741961377433,0.012008,83276.0,83264.0,0.012009]
[1741961377661,0.3,83298.0,83271.0,0.012008]
[1741961377662,0.012008,83277.0,83271.0,0.012008]
[1741961378013,0.240184,83270.0,83262.0,0.01201]
[1741961378162,0.012009,83268.0,83261.0,0.240206]
[1741961378518,0.01201,83263.0,83255.0,0.1752]
[1741961378688,0.012011,83252.0,83245.0,0.0001694]
[1741961378890,0.012011,83251.0,83247.0,0.240248]
[1741961379048,0.240233,83253.0,83249.0,0.240241]
[1741961379389,0.240244,83249.0,83245.0,0.0001694]
[1741961379593,0.240245,83249.0,83245.0,0.0001694]
[1741961379792,0.252263,83246.0,83245.0,0.0001694]
[1741961380337,0.2711002,83249.0,83245.0,0.0001694]
[1741961380338,0.0188432,83249.0,83247.0,0.240246]
[1741961380545,0.0188432,83249.0,83245.0,0.2404214]
[1741961380757,0.0308552,83249.0,83245.0,0.0001694]
[1741961380950,0.24025,83247.0,83245.0,0.0001694]
[1741961381309,0.24025,83247.0,83245.0,0.0031694]
[1741961381449,0.012012,83246.0,83245.0,0.0031694]
[1741961381872,0.012012,83246.0,83245.0,0.0001694]
[1741961382810,0.0342544,83246.0,83245.0,0.0001694]
[1741961384395,0.0222424,83246.0,83245.0,0.0001694]
[1741961384961,0.0342544,83246.0,83245.0,0.0001694]
[1741961385852,0.012012,83246.0,83245.0,0.0001694]
[1741961386373,0.012012,83246.0,83215.0,0.01185773]
[1741961386374,0.012013,83237.0,83231.0,0.2364614]
[1741961386615,0.24028,83236.0,83232.0,0.240291]
[1741961386784,0.240304,83228.0,83224.0,0.0126236]
[1741961387005,0.240304,83229.0,83225.0,0.252327]
[1741961387207,0.240296,83231.0,83228.0,0.240303]
[1741961387416,0.012012,83245.0,83240.0,0.012013]
[1741961387625,0.24025,83247.0,83242.0,0.240261]
[1741961387951,0.240208,83261.0,83252.0,0.012011]
[1741961388154,0.012012,83250.0,83243.0,0.42503518]
[1741961388371,0.012012,83244.0,83235.0,0.012014]
[1741961388703,0.240249,83247.0,83241.0,0.012013]
[1741961388830,0.480404,83264.0,83241.0,0.012013]
[1741961388831,0.240243,83249.0,83244.0,0.252267]
[1741961389029,0.240243,83249.0,83239.0,0.240269]
[1741961389030,0.012012,83249.0,83239.0,0.240269]
[1741961389329,0.480379,83269.0,83227.0,0.0798]
[1741961389538,0.240294,83232.0,83228.0,0.240302]
[1741961389761,0.012014,83232.0,83227.0,0.240305]
[1741961389972,0.240296,83231.0,83228.0,0.240303]
[1741961390181,0.012014,83234.0,83229.0,0.012015]
[1741961390356,0.07168714,83256.0,83226.0,0.2404778]
[1741961390357,0.012012,83246.0,83239.0,0.012013]
[1741961390554,0.240275,83238.0,83233.0,0.252301]
[1741961390713,0.240275,83238.0,83235.0,0.240283]
[1741961390927,0.240266,83241.0,83237.0,0.240277]
[1741961390928,0.24027,83240.0,83237.0,0.240277]
[1741961391121,0.018845,83238.0,83237.0,0.012013]
[1741961391349,0.019184,83238.0,83237.0,0.13631438]
[1741961391554,0.019184,83238.0,83237.0,0.55063]
[1741961391749,0.019184,83238.0,83237.0,0.56517085]
[1741961392149,1.200503,83299.0,83264.0,0.012009]
[1741961392150,0.012008,83271.0,83264.0,0.012009]
[1741961392352,1.250503,83299.0,83265.0,0.252203]
[1741961392353,0.240186,83269.0,83265.0,0.252203]
[1741961392556,0.240186,83269.0,83262.0,0.01201]
[1741961392557,0.240191,83267.0,83263.0,0.240202]
[1741961392732,0.240194,83266.0,83263.0,0.240202]
[1741961392958,0.02224894,83268.0,83264.0,0.012009]
[1741961393154,0.240191,83267.0,83263.0,0.2402]
[1741961393410,0.03084888,83270.0,83264.0,0.012009]
[1741961393411,0.26962399,83270.0,83264.0,0.012009]
[1741961393590,0.240188,83269.0,83264.0,0.012009]
[1741961393825,0.252191,83270.0,83265.0,0.240196]
[1741961394031,0.240179,83271.0,83266.0,0.240191]
[1741961394271,0.0003388,83284.0,83276.0,0.012008]
[1741961394472,0.240152,83281.0,83276.0,0.252172]
[1741961394676,0.0003388,83284.0,83283.0,0.252152]
[1741961394890,0.0003388,83284.0,83283.0,0.012007]
[1741961395062,0.0003388,83284.0,83282.0,0.240147]
[1741961396117,0.240161,83278.0,83273.0,0.252179]
[1741961396325,0.0003388,83284.0,83253.0,0.081]
[1741961396530,0.240195,83266.0,83261.0,0.240206]
[1741961396751,0.2402,83264.0,83261.0,0.240207]
[1741961396887,0.2402,83264.0,83255.0,0.012011]
[1741961396888,0.01201,83262.0,83255.0,0.012011]
[1741961397098,0.01201,83262.0,83238.0,0.02382058]
[1741961397099,0.012011,83255.0,83245.0,0.187212]
[1741961397296,0.240235,83252.0,83247.0,0.012012]
[1741961397505,0.012011,83255.0,83228.0,0.012015]
[1741961397506,0.240275,83238.0,83228.0,0.012015]
[1741961397702,0.240275,83238.0,83224.0,0.1877836]
[1741961397703,0.012012,83246.0,83241.0,0.240265]
[1741961398014,0.240249,83247.0,83242.0,0.012013]
[1741961398372,0.240249,83247.0,83240.0,0.240267]
[1741961398373,0.01884381,83245.0,83240.0,0.240269]
[1741961398551,0.01884381,83245.0,83241.0,0.240265]
[1741961398714,0.25909881,83245.0,83241.0,0.252278]
[1741961398912,0.012013,83240.0,83232.0,0.012014]
[1741961399157,0.03085581,83245.0,83236.0,0.240279]
[1741961399372,0.03085581,83245.0,83238.0,0.012013]
[1741961399373,0.240265,83242.0,83238.0,0.012013]
[1741961399535,0.012013,83243.0,83229.0,0.240298]
[1741961399743,0.012014,83236.0,83230.0,0.012014]
[1741961399937,0.240284,83235.0,83232.0,0.240291]
[1741961400136,0.012014,83236.0,83229.0,0.012015]
[1741961400342,0.240286,83234.0,83230.0,0.25231]
[1741961400606,0.01884533,83235.0,83230.0,0.012014]
[1741961400780,0.01884533,83235.0,83234.0,0.012014]
[1741961401670,0.01884533,83235.0,83234.0,0.02775622]
[1741961401896,0.01201,83261.0,83255.0,0.240225]
[1741961402150,0.012008,83274.0,83262.0,0.01201]
[1741961402351,0.252191,83270.0,83265.0,0.240196]
[1741961402719,0.24018,83271.0,83266.0,0.012009]
[1741961402985,0.012009,83269.0,83266.0,0.0060048]
[1741961403198,0.240195,83266.0,83262.0,0.240204]
[1741961403379,0.01883964,83272.0,83267.0,0.012009]
[1741961403797,0.012007,83283.0,83272.0,0.012008]
[1741961404009,0.240157,83279.0,83276.0,0.240163]
[1741961404212,0.11825714,83282.0,83276.0,0.240163]
[1741961404213,0.10625014,83282.0,83281.0,0.012007]
[1741961404339,0.10625014,83282.0,83277.0,0.012008]
[1741961404538,0.10625014,83282.0,83281.0,0.012007]
[1741961404739,0.10625014,83282.0,83260.0,0.3381855]
[1741961405123,0.10625014,83282.0,83280.0,0.252159]
[1741961405325,0.10625014,83282.0,83281.0,0.012007]
[1741961405525,0.10625014,83282.0,83281.0,0.011007]
[1741961406161,0.0003388,83284.0,83283.0,0.012007]
[1741961406549,8e-07,83284.0,83283.0,0.28366785]
[1741961406780,8e-07,83284.0,83283.0,0.28866785]
[1741961407034,0.10625014,83316.0,83305.0,0.012004]
[1741961407245,0.10625014,83316.0,83305.0,0.44294606]
[1741961407448,0.10625014,83316.0,83305.0,0.44174585]
[1741961407891,0.10625014,83316.0,83305.0,0.44114585]
[1741961408347,0.10625014,83316.0,83315.0,0.252054]
[1741961408559,0.10625014,83316.0,83315.0,0.26659485]
[1741961408980,0.10625014,83316.0,83315.0,0.26559485]
[1741961409185,0.10625014,83316.0,83315.0,0.34279485]
[1741961409609,0.00034,83318.0,83315.0,0.34279485]
[1741961409610,0.00034,83318.0,83317.0,0.26658985]
[1741961410242,0.00034,83318.0,83317.0,0.427089]
[1741961410501,0.27121079,83318.0,83317.0,0.17504]
[1741961410757,8e-07,83371.0,83370.0,0.256888]
[1741961410992,8e-07,83371.0,83357.0,0.1207]
[1741961410993,0.00667318,83444.0,83440.0,0.54950129]
[1741961411196,0.03607,83455.0,83454.0,0.005]
[1741961411395,0.01252371,83462.0,83454.0,0.005]
[1741961411396,7.1e-07,83462.0,83461.0,0.256613]
[1741961411604,7.1e-07,83462.0,83455.0,0.011982]
[1741961411605,0.3649059,83480.0,83479.0,0.25156]
[1741961411821,0.239447,83526.0,83479.0,0.25156]
[1741961411822,0.011971,83531.0,83504.0,0.251484]
[1741961412054,0.011971,83531.0,83508.0,0.239498]
[1741961412264,0.011971,83534.0,83508.0,0.239498]
[1741961412265,0.251389,83536.0,83508.0,0.251472]
[1741961412468,0.239386,83547.0,83534.0,0.23942]
[1741961412673,0.0008,83549.0,83541.0,0.239402]
[1741961412882,0.0008,83549.0,83548.0,0.239383]
[1741961413090,0.0008,83549.0,83548.0,0.450792]
[1741961413328,0.95868119,83584.0,83580.0,0.54950129]
[1741961413530,0.95868119,83584.0,83581.0,0.18899244]
[1741961413734,0.0015538,83597.0,83590.0,0.011963]
[1741961413952,0.0015538,83597.0,83596.0,0.601207]
[1741961414369,0.0008,83629.0,83621.0,0.239173]
[1741961414568,0.0008,83629.0,83619.0,0.54650129]
[1741961414771,0.0008,83629.0,83628.0,0.011957]
[1741961414981,0.05,83668.0,83650.0,0.54950129]
[1741961415187,0.05,83668.0,83637.0,0.011956]
[1741961415188,0.011957,83633.0,83632.0,0.005]
[1741961415397,0.011957,83633.0,83596.0,0.01454085]
[1741961415398,0.07,83629.0,83628.0,0.005]
[1741961415610,0.07,83629.0,83607.0,0.01196]
[1741961415611,5.210533,83629.0,83627.0,0.005]
[1741961415824,3.747,83628.0,83614.0,0.239194]
[1741961416071,0.36303203,83627.0,83607.0,0.239214]
[1741961416282,0.3,83611.0,83580.0,0.54950129]
[1741961416503,0.3,83611.0,83569.0,0.011966]
[1741961416504,0.0001694,83584.0,83554.0,0.31070008]
[1741961416718,0.0501694,83584.0,83572.0,0.011965]
[1741961416933,0.05,83578.0,83577.0,0.2393]
[1741961417167,0.0001694,83584.0,83583.0,0.238283]
[1741961417380,0.0551694,83584.0,83581.0,0.239288]
[1741961417590,0.05,83574.0,83555.0,0.011968]
[1741961417794,0.05,83574.0,83541.0,0.00119651]
[1741961417795,0.54950129,83570.0,83541.0,0.00119651]
[1741961418000,3.085,83573.0,83541.0,0.00119651]
[1741961418001,0.54950129,83550.0,83541.0,0.00119651]
[1741961418203,2.8129,83549.0,83528.0,0.00119684]
[1741961418406,0.05,83530.0,83524.0,0.01197]
[1741961418607,0.05,83530.0,83511.0,0.00199687]
[1741961418608,0.05,83515.0,83512.0,0.011974]
[1741961418830,0.05,83517.0,83516.0,0.251447]
[1741961419039,0.005,83517.0,83516.0,0.251447]
[1741961419236,0.005,83517.0,83514.0,0.251451]
[1741961419237,0.03089919,83531.0,83525.0,0.239446]
[1741961419498,0.005,83528.0,83527.0,0.011972]
[1741961419721,0.005,83533.0,83525.0,0.011972]
[1741961419893,0.005,83534.0,83528.0,0.011972]
[1741961420158,0.251405,83530.0,83508.0,0.3]
[1741961420366,0.01197,83537.0,83505.0,0.036014]
[1741961420367,0.04287319,83512.0,83505.0,0.036014]
[1741961420577,0.04287319,83512.0,83471.0,0.0008]
[1741961420578,0.04366434,83512.0,83478.0,0.011979]
[1741961420785,0.25416,83512.0,83496.0,0.011976]
[1741961421001,0.28505919,83512.0,83495.0,0.239534]
[1741961421242,0.59703319,83512.0,83495.0,0.00119751]
[1741961421440,0.59703319,83512.0,83443.0,0.83758]
[1741961421441,0.011979,83473.0,83457.0,0.011982]
[1741961421644,0.005,83472.0,83471.0,0.252384]
[1741961421847,0.24912,83474.0,83471.0,0.0008]
[1741961422056,0.03089919,83472.0,83471.0,0.0008]
[1741961422265,0.01198,83472.0,83471.0,0.0008]
[1741961422449,0.04787919,83472.0,83471.0,0.0008]
[1741961422674,0.005,83472.0,83471.0,0.0008]
[1741961422877,0.03589919,83472.0,83471.0,0.0008]
[1741961423077,0.04787919,83472.0,83471.0,0.0008]
[1741961423313,0.005,83462.0,83448.0,0.011983]
[1741961423550,0.03089919,83463.0,83451.0,0.01318117]
[1741961423765,0.005,83470.0,83462.0,0.011981]
[1741961424006,0.011979,83479.0,83456.0,0.251629]
[1741961424007,0.03089919,83463.0,83457.0,0.011982]
[1741961424208,0.03589919,83477.0,83469.0,0.01198]
[1741961424411,0.24768,83471.0,83462.0,0.011981]
[1741961424616,0.24768,83471.0,83449.0,0.01454085]
[1741961424617,0.03589919,83470.0,83458.0,0.011982]
[1741961424833,0.00119616,83470.0,83460.0,0.011981]
[1741961425016,0.24768,83471.0,83463.0,0.011981]
[1741961425218,0.03089919,83485.0,83456.0,0.3]
[1741961425417,0.03089919,83485.0,83430.0,1.5]
[1741961425418,0.011975,83507.0,83491.0,0.011977]
[1741961425717,0.011975,83507.0,83488.0,0.011977]
[1741961425718,0.016975,83502.0,83487.0,0.011977]
[1741961425924,0.03089919,83500.0,83489.0,0.011977]
[1741961426137,0.005,83502.0,83489.0,0.011977]
[1741961426138,0.03089919,83496.0,83490.0,0.011977]
[1741961426346,0.03089919,83496.0,83487.0,0.011977]
[1741961426556,0.03089919,83496.0,83480.0,0.251554]
[1741961426702,0.016976,83494.0,83480.0,0.011978]
[1741961426907,0.005,83494.0,83482.0,0.011978]
[1741961427209,0.005,83502.0,83494.0,0.011976]
[1741961427391,0.239498,83508.0,83487.0,0.011977]
[1741961427392,0.005,83499.0,83488.0,0.239553]
[1741961427590,0.239533,83496.0,83484.0,0.3]
[1741961427797,0.005,83488.0,83472.0,0.01198]
[1741961428176,0.011978,83484.0,83469.0,0.32652085]
[1741961428327,0.239566,83484.0,83470.0,0.01454085]
[1741961428493,0.239566,83484.0,83469.0,0.01198]
[1741961428494,0.011979,83479.0,83465.0,0.2519386]
[1741961428704,0.005,83480.0,83467.0,0.01198]
[1741961428913,0.04287819,83479.0,83466.0,0.31198]
[1741961429154,0.04287819,83479.0,83465.0,0.2519386]
[1741961429155,0.016979,83475.0,83465.0,0.0003376]
[1741961429700,0.239578,83480.0,83465.0,0.0003376]
[1741961429701,0.005,83493.0,83487.0,0.239558]
[1741961429861,0.256531,83489.0,83473.0,0.011979]
[1741961430073,0.03089919,83488.0,83475.0,0.3]
[1741961430269,0.03089919,83488.0,83477.0,0.011979]
[1741961430469,0.03089919,83488.0,83481.0,0.011978]
[1741961430694,0.005,83493.0,83489.0,0.011977]
[1741961430994,0.005,83491.0,83480.0,0.011978]
[1741961431222,0.005,83491.0,83481.0,0.251551]
[1741961431452,0.251507,83497.0,83455.0,0.02457741]
[1741961431453,0.005,83499.0,83494.0,0.251514]
[1741961431626,0.005,83516.0,83515.0,0.25145]
[1741961431859,0.005,83515.0,83506.0,0.011975]
[1741961431977,0.03089919,83511.0,83500.0,0.011976]
[1741961432177,0.251516,83494.0,83479.0,0.011979]
[1741961432433,0.03089919,83492.0,83485.0,0.239563]
[1741961432640,0.03089919,83492.0,83486.0,0.00796546]
[1741961432848,0.03089919,83492.0,83483.0,0.251547]
[1741961433052,0.03089919,83492.0,83484.0,0.01995215]
[1741961433335,0.005,83496.0,83486.0,0.011978]
[1741961433537,0.00119616,83501.0,83489.0,0.239552]
[1741961433710,0.011973,83515.0,83500.0,0.011976]
[1741961433933,0.239489,83511.0,83496.0,0.02651685]
[1741961434201,0.00119616,83512.0,83506.0,0.011975]
[1741961434416,0.011973,83519.0,83508.0,0.011974]
[1741961434675,0.011973,83521.0,83510.0,0.011974]
[1741961434883,0.011973,83520.0,83509.0,0.251469]
[1741961435060,0.251411,83529.0,83513.0,0.011974]
[1741961435291,0.251411,83529.0,83518.0,0.239466]
[1741961435500,0.251411,83529.0,83515.0,0.239475]
[1741961435714,0.251411,83529.0,83492.0,0.359312]
[1741961435715,0.011973,83521.0,83484.0,0.4106]
[1741961435896,0.011975,83506.0,83497.0,0.01454085]
[1741961436044,0.239545,83492.0,83474.0,0.0757]
[1741961436402,0.00119616,83529.0,83461.0,0.4106]
[1741961436403,0.011976,83494.0,83484.0,0.02173057]
[1741961436684,0.011976,83496.0,83484.0,0.02173057]
[1741961436920,0.011975,83502.0,83487.0,0.011977]
[1741961437039,0.011974,83509.0,83496.0,0.011976]
[1741961437235,0.23953,83497.0,83485.0,0.239563]
[1741961437435,0.011975,83502.0,83485.0,0.239563]
[1741961437436,0.011976,83499.0,83486.0,0.239561]
[1741961437796,0.239511,83504.0,83491.0,0.011977]
[1741961438019,0.011973,83516.0,83502.0,0.011975]
[1741961438221,0.011974,83513.0,83496.0,0.011976]
[1741961438362,0.239489,83511.0,83501.0,0.01454085]
[1741961438544,0.011974,83510.0,83496.0,0.011976]
[1741961438766,0.239495,83509.0,83499.0,0.02651685]
[1741961438996,0.239495,83509.0,83496.0,0.251506]
[1741961438997,0.011975,83505.0,83497.0,0.33296193]
[1741961439203,0.251487,83504.0,83497.0,0.03296193]
[1741961439405,0.239514,83503.0,83497.0,0.03296193]
[1741961439625,0.239525,83499.0,83497.0,0.03296193]
[1741961439902,0.251502,83498.0,83497.0,0.03296193]
[1741961441756,0.248336,83498.0,83497.0,0.03296193]
[1741961441931,0.23632,83498.0,83489.0,0.011977]
[1741961442135,0.011976,83496.0,83486.0,0.011978]
[1741961442356,0.23954,83494.0,83484.0,0.01487865]
[1741961442586,0.251513,83495.0,83487.0,0.00015543]
[1741961442824,0.011975,83505.0,83491.0,0.239545]
[1741961443041,0.2356,83509.0,83497.0,0.239529]
[1741961443247,0.011975,83504.0,83494.0,0.239538]
[1741961443447,0.011975,83504.0,83492.0,0.00014079]
[1741961443448,0.251499,83499.0,83498.0,0.00012323]
[1741961443584,0.011975,83502.0,83493.0,0.251518]
[1741961444003,0.011975,83502.0,83494.0,0.00013494]
[1741961444175,0.239504,83506.0,83494.0,0.01211094]
[1741961444380,0.251472,83508.0,83495.0,0.00119755]
[1741961444611,0.239519,83501.0,83497.0,0.001]
[1741961444838,0.251502,83498.0,83497.0,0.001]
[1741961445093,0.011976,83498.0,83497.0,0.001]
[1741961445329,0.01317216,83498.0,83497.0,0.001]
[1741961447507,0.00119616,83498.0,83497.0,0.001]
[1741961447710,0.23224,83511.0,83498.0,0.239524]
[1741961447918,0.23224,83511.0,83497.0,0.001]
[1741961447919,0.011975,83503.0,83497.0,0.001]
[1741961448338,0.239513,83503.0,83497.0,0.001]
[1741961448543,0.011974,83513.0,83505.0,0.011975]
[1741961448716,0.239517,83502.0,83498.0,0.01454085]
[1741961448923,0.239515,83502.0,83491.0,0.3]
[1741961449123,0.011976,83498.0,83488.0,0.239554]
[1741961449566,0.011976,83498.0,83489.0,0.239551]
[1741961449772,0.011976,83498.0,83485.0,0.01454085]
[1741961449976,0.06487575,83498.0,83472.0,0.3]
[1741961450178,0.01317216,83498.0,83473.0,0.00119781]
[1741961450383,0.01317216,83498.0,83473.0,0.011979]
[1741961450592,0.01317216,83498.0,83471.0,0.4106]